bitfinex/quotes_ETHUSD_20250602
["timestamp","ask_amount","ask_price","bid_price","bid_amount"]
[1748831724011,0.8177,2516.8,2516.5,3.97371194]
[1748831725534,0.8177,2516.8,2516.6,3.97353592]
[1748831727741,0.8177,2516.8,2516.4,3.97383278]
[1748831727953,0.8177,2516.8,2516.3,3.97403754]
[1748831728119,5.77550485,2516.7,2516.2,3.97413054]
[1748831728312,4.063,2516.6,2516.2,3.97413054]
[1748831728511,8.0,2516.9,2516.3,0.7705]
[1748831728772,8.0,2517.1,2516.3,0.7705]
[1748831728944,8.0,2517.1,2516.7,3.97330345]
[1748831729317,4.068,2517.0,2516.3,0.7705]
[1748831729838,4.068,2517.0,2516.7,3.97344892]
[1748831730357,5.77550485,2517.4,2517.1,3.97282587]
[1748831730527,12.07,2517.3,2517.1,3.97282587]
[1748831730734,12.07,2517.3,2516.9,3.97310505]
[1748831730945,12.07,2517.3,2517.0,3.97289628]
[1748831731642,12.07,2517.3,2517.1,3.97280958]
[1748831731957,4.068,2517.4,2517.3,3.97240647]
[1748831732159,0.37590856,2517.5,2517.4,3.97235242]
[1748831732325,0.62622187,2518.1,2517.4,3.97235242]
[1748831732326,1.19513933,2517.8,2517.4,3.97235242]
[1748831732520,8.0,2517.6,2517.3,3.97248305]
[1748831732720,8.0,2517.6,2517.0,0.7674]
[1748831733034,8.0,2517.6,2517.2,3.97264617]
[1748831733232,8.0,2517.6,2517.3,3.97250088]
[1748831734284,8.0,2517.6,2517.2,3.97258454]
[1748831734440,8.0,2517.6,2517.0,4.74036821]
[1748831734648,8.0,2517.6,2517.1,3.97271499]
[1748831734846,8.0,2517.6,2517.2,3.9726509]
[1748831736855,2.51036437,2517.8,2517.0,0.7674]
[1748831736856,8.28586922,2517.8,2517.0,0.7674]
[1748831737061,12.44399229,2517.7,2517.5,3.97209791]
[1748831737237,12.068,2517.7,2517.5,3.97209791]
[1748831737436,12.068,2517.7,2517.4,3.97229164]
[1748831737960,4.067,2517.6,2517.5,3.97206004]
[1748831738195,4.068,2517.6,2517.5,3.97215723]
[1748831738358,8.0,2517.6,2517.5,3.97215723]
[1748831738554,12.068,2517.6,2517.4,3.97230116]
[1748831738891,12.068,2517.6,2517.3,3.97244923]
[1748831739892,8.0,2517.6,2517.5,3.97219463]
[1748831740078,12.067,2517.6,2517.5,3.97219463]
[1748831740965,12.066,2517.6,2517.5,3.97219463]
[1748831741298,12.066,2517.6,2517.5,4.7666477]
[1748831742395,12.066,2517.6,2517.5,3.97219463]
[1748831742852,8.0,2517.6,2517.5,3.97219463]
[1748831745403,8.0,2517.6,2517.4,4.77235424]
[1748831746277,8.0,2517.6,2517.5,3.97219463]
[1748831746779,12.063,2517.6,2517.5,3.97219463]
[1748831746962,12.063,2517.6,2517.5,4.84665809]
[1748831748065,12.063,2517.6,2517.4,0.8001]
[1748831748261,17.83850485,2517.6,2517.1,4.75]
[1748831748510,8.0,2517.2,2516.7,3.97337893]
[1748831748804,6.55720485,2517.0,2516.3,6.5781]
[1748831749111,4.067,2516.9,2516.6,3.97360347]
[1748831749330,4.067,2516.9,2516.6,3.97361519]
[1748831749516,4.067,2516.9,2516.7,3.97342966]
[1748831750775,4.067,2516.9,2516.6,3.97358943]
[1748831750979,4.067,2516.9,2516.5,3.9737315]
[1748831751180,4.067,2516.9,2516.4,3.97385458]
[1748831751879,4.067,2516.9,2516.5,3.97376816]
[1748831752804,4.067,2516.9,2516.3,4.7451529]
[1748831752805,4.067,2516.9,2516.6,3.97360818]
[1748831753308,4.067,2516.9,2516.7,3.97345475]
[1748831753482,4.067,2516.9,2516.6,3.97354888]
[1748831754307,4.067,2516.9,2516.6,3.97348008]
[1748831754507,4.067,2516.9,2516.5,3.9737646]
[1748831754668,4.067,2516.9,2516.5,3.97369558]
[1748831755110,4.067,2516.9,2516.6,3.97360006]
[1748831755409,4.067,2516.9,2516.7,3.97342393]
[1748831756100,4.067,2516.9,2516.6,3.9735047]
[1748831756808,4.067,2516.9,2516.7,3.97342136]
[1748831757058,4.067,2516.9,2516.7,3.97332724]
[1748831758256,4.067,2516.9,2516.8,3.97329942]
[1748831758567,8.7817,2517.0,2516.8,3.97329942]
[1748831758854,8.7817,2517.0,2516.9,3.97314156]
[1748831759056,12.063,2517.0,2516.9,3.97314156]
[1748831759209,8.0,2517.3,2516.8,0.7955]
[1748831759569,0.8056,2517.8,2517.6,3.97195729]
[1748831759717,0.8056,2517.8,2517.5,3.97208291]
[1748831759718,4.063,2517.7,2517.5,3.97208291]
[1748831760256,0.8056,2517.8,2517.6,3.97200729]
[1748831760459,0.8056,2518.1,2517.3,0.7955]
[1748831760749,8.0,2517.7,2517.3,3.97246321]
[1748831760938,4.064,2517.6,2517.3,3.97246321]
[1748831761509,4.064,2517.6,2517.4,3.97231575]
[1748831763972,0.8044,2517.5,2517.3,3.97248791]
[1748831764771,0.8044,2517.5,2517.4,3.97235242]
[1748831764931,4.063,2517.5,2517.4,0.79449948]
[1748831765134,4.063,2517.5,2517.4,3.97235242]
[1748831765469,0.8044,2518.2,2517.9,3.97148195]
[1748831765629,4.063,2518.0,2517.9,3.97148195]
[1748831766259,8.0,2517.9,2517.7,3.97178787]
[1748831766547,4.063,2517.9,2517.6,3.97196215]
[1748831766744,0.7937,2517.8,2517.7,3.97174752]
[1748831766949,4.063,2517.9,2517.6,3.97197725]
[1748831767146,4.063,2517.9,2517.6,3.9719161]
[1748831767477,4.063,2517.9,2517.7,3.9718313]
[1748831768573,4.063,2517.9,2517.6,3.97203276]
[1748831768865,4.063,2517.9,2517.8,3.97172134]
[1748831769614,4.063,2517.9,2517.7,3.97183228]
[1748831769813,4.063,2517.9,2517.6,5.13321069]
[1748831770068,4.063,2517.9,2517.6,4.36921069]
[1748831770621,4.063,2517.9,2517.6,3.97200741]
[1748831771629,4.063,2517.9,2517.7,3.97185013]
[1748831771961,4.063,2517.9,2517.8,3.97172134]
[1748831772158,8.7937,2518.1,2517.7,3.97186495]
[1748831772365,4.062,2517.9,2517.8,3.97172134]
[1748831774022,4.062,2517.9,2517.7,3.97176676]
[1748831774223,4.062,2517.9,2517.8,3.97172134]
[1748831774839,4.062,2517.9,2517.7,3.97175128]
[1748831775443,4.062,2517.9,2517.8,3.97172134]
[1748831775668,4.062,2517.9,2517.5,3.97215996]
[1748831775859,4.062,2517.9,2517.6,3.97196265]
[1748831776353,4.062,2517.9,2517.3,4.75]
[1748831776524,0.833,2517.8,2517.4,3.97231827]
[1748831776870,12.062,2517.9,2517.8,3.97172134]
[1748831777070,12.062,2517.9,2517.7,3.97178449]
[1748831777468,12.062,2517.9,2517.7,3.9718002]
[1748831777968,12.062,2517.9,2517.7,3.97177677]
[1748831778175,12.062,2517.9,2517.6,4.73256161]
[1748831778382,12.062,2517.9,2517.5,3.97214165]
[1748831778725,12.062,2517.9,2517.6,3.97201882]
[1748831779750,4.062,2517.8,2517.4,3.97229415]
[1748831780069,4.062,2517.8,2517.1,3.97279833]
[1748831780070,4.062,2517.8,2517.5,3.97217801]
[1748831780364,4.062,2517.8,2517.6,3.97203443]
[1748831781258,4.062,2517.8,2517.7,3.97187909]
[1748831782069,8.0,2517.9,2517.8,3.97172134]
[1748831782257,12.062,2517.9,2517.7,3.97182764]
[1748831783573,12.062,2517.9,2517.6,4.80231678]
[1748831783574,12.062,2517.9,2517.6,4.80227852]
[1748831783736,17.83750485,2517.9,2517.4,3.97235242]
[1748831784181,21.80908818,2517.9,2517.3,0.8269]
[1748831784479,0.7786,2517.8,2517.4,3.97225637]
[1748831784833,0.7786,2517.8,2517.4,3.97227235]
[1748831785064,0.7786,2517.8,2517.5,3.97207833]
[1748831785266,5.77550485,2517.6,2517.1,5.8556812]
[1748831785452,4.062,2517.5,2517.1,1.8829]
[1748831785650,4.062,2517.5,2517.1,3.97280447]
[1748831785856,4.062,2517.5,2517.2,3.9726675]
[1748831787261,4.062,2517.5,2517.3,3.97244201]
[1748831787461,4.062,2517.5,2517.4,3.97235242]
[1748831787675,4.062,2517.5,2517.3,3.97241894]
[1748831787862,5.77550485,2517.6,2517.3,3.97251022]
[1748831788069,4.062,2517.5,2517.2,3.97266219]
[1748831788495,4.062,2517.5,2517.4,3.97235242]
[1748831788796,4.062,2517.5,2517.3,3.97243671]
[1748831789494,4.062,2517.5,2517.2,3.97260913]
[1748831789692,4.062,2517.5,2517.1,3.9728204]
[1748831789992,4.062,2517.5,2517.2,3.97263169]
[1748831790359,4.062,2517.5,2517.3,3.97249242]
[1748831790762,4.062,2517.5,2517.0,3.97296021]
[1748831791101,4.062,2517.5,2517.0,0.98004284]
[1748831791795,4.062,2517.5,2517.1,3.97273014]
[1748831792001,0.753,2517.4,2517.1,3.97273014]
[1748831792500,0.753,2517.4,2517.2,3.97266656]
[1748831792705,0.753,2517.4,2517.0,3.97298371]
[1748831792881,0.753,2517.4,2517.1,3.97282587]
[1748831793199,0.753,2517.4,2517.3,3.97251022]
[1748831793371,4.062,2517.5,2517.4,3.97235242]
[1748831793571,4.062,2517.5,2517.3,3.97242905]
[1748831793882,4.062,2517.5,2517.4,3.97235242]
[1748831794497,8.822,2517.8,2517.5,3.9721668]
[1748831794703,8.0,2517.6,2517.5,3.9721668]
[1748831795341,0.822,2518.0,2517.7,3.97179381]
[1748831795493,8.0,2517.8,2517.7,3.97179381]
[1748831795830,12.062,2517.8,2517.6,3.97197326]
[1748831796406,12.062,2517.8,2517.7,3.97187909]
[1748831796600,12.062,2517.8,2517.5,3.97208308]
[1748831797516,8.0,2517.8,2517.5,3.97208308]
[1748831797698,4.062,2517.7,2517.5,3.97208308]
[1748831798334,4.062,2517.7,2517.6,3.97203686]
[1748831799394,4.062,2517.7,2517.6,4.76645822]
[1748831800196,8.0,2517.8,2517.6,4.76645822]
[1748831800427,8.0,2517.8,2517.6,3.97203686]
[1748831800428,4.062,2517.7,2517.6,3.97203686]
[1748831804331,8.0,2517.8,2517.7,3.97187909]
[1748831804517,12.062,2517.8,2517.7,3.97187909]
[1748831805548,12.062,2517.8,2517.6,3.97201702]
[1748831805767,2.7761219,2517.7,2517.4,3.97229812]
[1748831806046,2.7761219,2517.5,2517.3,8.72245977]
[1748831806246,2.7761219,2517.5,2517.3,3.97251022]
[1748831806247,4.061,2517.4,2517.3,3.97251022]
[1748831807255,5.77638342,2517.7,2517.4,3.97228575]
[1748831807454,4.061,2517.6,2517.4,3.97228575]
[1748831808326,4.061,2517.6,2517.2,3.97266804]
[1748831808327,8.0,2517.5,2517.2,3.97266804]
[1748831808526,4.061,2517.4,2517.2,3.97266804]
[1748831809976,4.061,2517.4,2517.0,3.97294141]
[1748831809977,4.832,2517.4,2517.0,3.97294141]
[1748831810335,4.832,2517.4,2517.1,3.97269621]
[1748831811477,4.832,2517.4,2517.2,3.97264656]
[1748831813479,4.061,2517.4,2517.3,3.97251022]
[1748831814375,4.061,2517.4,2517.2,3.97260164]
[1748831814580,0.8004,2517.9,2517.0,0.7947]
[1748831814879,8.8004,2517.6,2517.2,3.97262016]
[1748831815178,4.062,2517.5,2517.2,3.97262016]
[1748831815570,4.062,2517.5,2517.0,3.97293603]
[1748831815877,4.062,2517.5,2517.2,3.97266471]
[1748831816180,6.32307839,2517.5,2517.2,3.97266471]
[1748831816681,6.32307839,2517.5,2517.1,3.97274653]
[1748831817490,4.062,2517.5,2517.1,3.97274653]
[1748831817712,8.7593,2517.3,2516.6,0.7514]
[1748831817871,8.0,2517.0,2516.6,3.97350601]
[1748831818191,4.8203,2516.9,2516.5,3.97371483]
[1748831818754,4.8203,2516.9,2516.2,4.7709937]
[1748831818755,5.77638342,2516.7,2516.2,4.7709937]
[1748831819018,4.061,2516.6,2516.2,4.77098978]
[1748831819650,4.061,2516.6,2516.3,3.97407457]
[1748831819891,4.061,2516.6,2516.2,0.79685186]
[1748831820067,4.061,2516.6,2516.4,3.97382293]
[1748831821127,4.061,2516.6,2516.5,3.97377309]
[1748831823459,4.062,2516.6,2516.5,3.97362249]
[1748831823655,4.062,2516.6,2516.4,3.97385581]
[1748831824095,4.062,2516.6,2516.3,3.97401143]
[1748831824460,4.062,2516.6,2516.4,3.97392991]
[1748831825069,4.062,2516.6,2516.5,3.97377309]
[1748831826312,0.7755,2517.2,2516.5,3.97377309]
[1748831826608,8.0,2517.2,2516.8,0.8051]
[1748831826795,0.7755,2517.4,2516.8,0.8051]
[1748831827002,4.062,2517.3,2517.2,3.97264165]
[1748831827180,4.062,2517.3,2516.8,0.8051]
[1748831827181,12.062,2517.3,2517.1,3.97278717]
[1748831827710,12.062,2517.3,2517.0,3.97293869]
[1748831827927,12.062,2517.3,2517.0,3.97290285]
[1748831828209,12.062,2517.3,2516.9,3.97311234]
[1748831828588,12.062,2517.3,2517.0,3.97296124]
[1748831828790,0.55,2517.2,2516.6,0.8051]
[1748831828991,0.7755,2517.1,2516.7,3.97335956]
[1748831829192,2.7783301,2516.9,2516.7,3.97335956]
[1748831829615,2.7783301,2516.9,2516.8,3.97329942]
[1748831829828,4.062,2517.0,2516.9,3.97314156]
[1748831831490,8.7874,2517.3,2517.2,3.97266804]
[1748831831491,8.0,2517.3,2517.2,3.97266804]
[1748831831686,12.062,2517.3,2517.2,3.97266804]
[1748831831917,8.7885,2517.5,2517.3,3.9724298]
[1748831832161,4.062,2517.4,2517.2,3.97261283]
[1748831832314,6.8403301,2517.4,2517.2,3.97261283]
[1748831832841,6.8403301,2517.4,2517.3,3.97251022]
[1748831833409,8.0,2517.5,2516.9,4.85096319]
[1748831833608,4.062,2517.4,2517.3,3.97246114]
[1748831834033,8.0,2517.5,2517.4,3.97235242]
[1748831834234,12.062,2517.5,2517.4,3.97235242]
[1748831834849,0.49411498,2517.6,2517.5,3.97219463]
[1748831835025,8.49411498,2517.6,2517.5,3.97219463]
[1748831835356,12.55611498,2517.6,2517.5,3.97219463]
[1748831835509,2.7783301,2518.0,2517.8,3.97172134]
[1748831835713,4.062,2517.9,2517.8,3.97172134]
[1748831836010,8.0,2517.8,2517.4,0.8082]
[1748831836344,2.7783301,2517.7,2517.2,1.8665]
[1748831836548,2.7783301,2517.5,2517.3,3.97242173]
[1748831836742,2.7783301,2517.5,2517.2,3.97260225]
[1748831836944,2.7783301,2517.5,2517.2,3.97256431]
[1748831837453,2.7783301,2517.3,2517.2,3.97266804]
[1748831837753,6.8403301,2517.3,2517.2,3.97266804]
[1748831838059,6.8403301,2517.3,2517.1,3.97275203]
[1748831838557,7.6129301,2517.3,2516.9,3.97308409]
[1748831838851,2.7783301,2517.1,2516.9,3.97308409]
[1748831839051,4.061,2517.0,2516.9,3.97308409]
[1748831839955,4.061,2517.0,2516.8,3.97320821]
[1748831840161,4.061,2517.0,2516.8,3.97322607]
[1748831840526,4.061,2517.0,2516.9,3.97314156]
[1748831846569,4.061,2517.0,2516.8,3.97320834]
[1748831846930,4.061,2517.0,2516.9,3.97314156]
[1748831849185,4.061,2517.0,2516.7,5.02932804]
[1748831849389,4.061,2517.0,2516.7,1.056]
[1748831850280,4.061,2517.0,2516.8,3.97321409]
[1748831850475,4.061,2517.0,2516.9,3.97314156]
[1748831851579,4.061,2517.0,2516.8,3.97323884]
[1748831851884,4.061,2517.0,2516.7,5.02940299]
[1748831852090,4.061,2517.0,2516.9,3.97314156]
[1748831852288,4.061,2517.0,2516.8,3.97326145]
[1748831853256,4.061,2517.0,2516.9,3.97314156]
[1748831856666,2.7783301,2517.1,2517.0,3.97298371]
[1748831856859,6.8393301,2517.1,2517.0,3.97298371]
[1748831857062,6.8393301,2517.1,2516.9,3.97306144]
[1748831857272,6.8393301,2517.1,2516.9,3.97314156]
[1748831857705,6.8393301,2517.1,2517.0,3.97298371]
[1748831860615,2.7783301,2517.1,2517.0,3.97298371]
[1748831860821,6.8393301,2517.1,2517.0,3.97298371]
[1748831862326,6.8393301,2517.1,2516.9,3.9730972]
[1748831862823,6.8393301,2517.1,2517.0,3.97298371]
[1748831864526,2.7783301,2517.1,2517.0,3.97298371]
[1748831864737,6.8393301,2517.1,2517.0,3.97298371]
[1748831865792,8.0,2517.3,2517.2,3.97264244]
[1748831866020,12.43769506,2517.3,2517.2,3.97264244]
[1748831866806,8.37669506,2517.3,2517.2,3.97264244]
[1748831867112,12.43769506,2517.3,2517.2,3.97264244]
[1748831867328,8.37669506,2517.3,2517.2,3.97264244]
[1748831867622,4.061,2517.4,2517.2,4.84596952]
[1748831867927,4.061,2517.4,2517.2,3.97266804]
[1748831868619,4.061,2517.4,2517.3,3.97251022]
[1748831869206,4.061,2517.4,2517.0,0.7883]
[1748831869207,6.8393301,2517.4,2517.0,4.76122731]
[1748831869531,2.7783301,2517.2,2516.9,3.97308282]
[1748831869738,4.061,2517.1,2516.8,0.7999]
[1748831869943,4.061,2517.1,2516.9,3.97304901]
[1748831870308,4.061,2517.0,2516.9,3.97304901]
[1748831870730,2.7783301,2517.2,2517.0,3.97295841]
[1748831871048,4.061,2517.1,2517.0,3.97295841]
[1748831872647,4.061,2517.1,2516.9,3.97301573]
[1748831874064,4.061,2517.1,2517.0,3.97298371]
[1748831875609,4.061,2517.1,2516.9,3.97307661]
[1748831875959,4.061,2517.1,2516.7,5.02936621]
[1748831876244,4.061,2517.1,2516.8,3.97321339]
[1748831876850,2.7783301,2517.2,2517.0,3.97297281]
[1748831877039,4.061,2517.1,2516.9,3.97308102]
[1748831877269,4.061,2517.1,2517.0,3.97298371]
[1748831877574,4.061,2517.1,2516.9,3.9731099]
[1748831879177,4.061,2517.1,2517.0,3.97298371]
[1748831880253,4.061,2517.1,2517.0,3.97291341]
[1748831883508,4.061,2517.1,2516.8,3.97315859]
[1748831883659,2.7783301,2517.0,2516.7,1.056]
[1748831884046,4.06,2516.9,2516.8,3.97329356]
[1748831888381,4.06,2516.9,2516.6,3.97356486]
[1748831888554,2.7783301,2516.8,2516.7,3.9734493]
[1748831889671,4.06,2516.9,2516.8,3.97329942]
[1748831889995,0.76,2517.5,2517.3,3.97239363]
[1748831890150,4.4366744,2517.4,2517.3,3.97239363]
[1748831890865,4.06,2517.4,2517.3,3.97239363]
[1748831891064,4.436666,2517.4,2517.3,3.97239363]
[1748831891604,0.4708325,2517.9,2517.6,3.97192187]
[1748831891901,6.19387871,2518.7,2517.6,3.97192187]
[1748831891902,0.37663153,2517.8,2517.7,3.97187909]
[1748831892102,4.06,2518.0,2517.9,3.9714688]
[1748831892889,0.37663153,2518.2,2518.0,3.97132451]
[1748831893184,12.06,2518.1,2517.6,0.7682]
[1748831893404,2.7783301,2517.9,2517.7,3.97172444]
[1748831893574,2.7783301,2517.9,2517.2,8.7226288]
[1748831893575,4.06,2517.8,2517.5,3.97210966]
[1748831893777,4.06,2517.8,2517.4,4.74050211]
[1748831894000,4.06,2517.8,2517.7,3.97187909]
[1748831896892,2.7783301,2518.1,2517.8,3.97166321]
[1748831897184,4.06,2518.0,2517.8,3.97165574]
[1748831901781,2.7783301,2517.9,2517.5,4.7521515]
[1748831902114,2.7783301,2517.9,2517.7,3.97183704]
[1748831903402,2.7783301,2517.9,2517.8,3.97172134]
[1748831903586,2.7783301,2518.1,2517.9,3.97147519]
[1748831903789,4.059,2518.0,2517.9,3.97147519]
[1748831904135,4.059,2518.0,2517.8,3.97166773]
[1748831907177,2.7783301,2518.1,2517.9,3.97154572]
[1748831907516,4.059,2518.0,2517.9,3.97154572]
[1748831907727,4.059,2518.0,2517.3,8.72245921]
[1748831907728,8.8068,2517.9,2516.9,4.75]
[1748831907938,2.7783301,2517.5,2517.4,3.97227384]
[1748831908216,2.7783301,2517.7,2517.5,3.97209942]
[1748831908421,4.059,2517.6,2517.5,3.97209942]
[1748831909212,3.97244052,2517.4,2516.9,4.75]
[1748831909412,2.7783301,2517.0,2516.5,0.8142]
[1748831909613,0.68373301,2517.6,2516.6,2.7783301]
[1748831909922,8.0,2518.0,2517.4,0.8142]
[1748831910213,2.7783301,2517.9,2517.4,4.78642266]
[1748831910383,2.7783301,2517.9,2517.6,3.97195187]
[1748831910579,2.7783301,2517.9,2517.5,3.97218818]
[1748831910918,2.7783301,2517.9,2517.7,3.97185012]
[1748831911319,2.7783301,2517.9,2517.8,3.97172134]
[1748831911921,2.7783301,2517.9,2517.7,3.97181667]
[1748831912096,2.7783301,2517.9,2517.6,3.97202019]
[1748831912296,2.7783301,2517.9,2517.7,3.97173929]
[1748831912620,2.7783301,2517.9,2517.8,3.97172134]
[1748831913717,6.74974418,2518.0,2517.5,3.97219078]
[1748831913919,5.13740652,2518.0,2517.5,3.97219078]
[1748831914217,4.087,2517.9,2517.6,3.97201479]
[1748831914988,4.087,2517.9,2517.7,3.97185594]
[1748831915721,4.087,2517.9,2517.6,3.97198211]
[1748831916020,4.087,2517.9,2517.5,3.97212407]
[1748831916219,2.7783301,2517.8,2517.6,3.97198663]
[1748831916421,2.7783301,2517.8,2517.6,3.97193934]
[1748831916619,2.7783301,2517.8,2517.4,3.97230032]
[1748831916799,2.7783301,2517.8,2517.5,3.97215942]
[1748831917117,2.7783301,2517.8,2517.6,3.97203567]
[1748831917332,2.7783301,2517.8,2517.6,3.97202115]
[1748831918027,5.36431207,2517.9,2517.6,3.97202115]
[1748831918028,5.36431207,2517.9,2517.7,3.97187909]
[1748831918618,5.36431207,2517.9,2517.6,3.97196716]
[1748831919232,5.74053665,2517.9,2517.6,3.97196716]
[1748831919438,0.55,2517.7,2517.3,3.97242207]
[1748831919629,6.8643301,2517.6,2516.9,0.8265]
[1748831919795,6.8643301,2517.6,2517.2,3.97258748]
[1748831920824,6.8643301,2517.6,2516.9,0.8265]
[1748831921028,4.086,2517.6,2517.4,3.97221912]
[1748831921337,4.46228931,2517.6,2517.4,3.97221912]
[1748831921706,0.37628931,2517.6,2517.5,3.97219463]
[1748831921917,8.0,2517.6,2517.5,3.97219463]
[1748831922112,8.0,2517.6,2516.9,4.79959133]
[1748831922317,8.0,2517.6,2517.3,3.97240246]
[1748831923340,8.0,2517.6,2517.4,3.97232997]
[1748831924141,8.0,2517.6,2517.2,3.97265623]
[1748831924513,8.0,2517.6,2517.3,3.97241387]
[1748831924831,8.0,2517.6,2517.2,3.97265623]
[1748831925030,8.0,2517.6,2517.3,3.97239412]
[1748831925939,8.0,2517.6,2517.3,3.97241478]
[1748831926356,8.0,2517.6,2517.4,3.9723242]
[1748831926550,8.0,2517.6,2517.0,1.53495913]
[1748831926551,4.079,2517.6,2517.5,3.97219463]
[1748831926951,1.25866825,2518.1,2517.8,3.97164902]
[1748831927155,4.45634903,2518.0,2517.8,3.97164902]
[1748831927442,8.0,2517.9,2517.8,3.97164902]
[1748831928058,8.0,2517.9,2517.7,4.78054795]
[1748831928360,8.0,2517.9,2517.7,3.97184795]
[1748831929362,8.0,2517.9,2517.6,3.97198027]
[1748831930538,8.0,2517.9,2517.7,3.97187774]
[1748831930739,8.0,2517.9,2517.8,3.97172134]
[1748831931136,8.0,2518.0,2517.9,3.97149054]
[1748831931369,4.077,2518.2,2518.0,3.97140587]
[1748831931537,0.37697408,2518.1,2518.0,3.97140587]
[1748831931740,0.37697408,2518.1,2517.9,0.7866]
[1748831932053,0.37697408,2518.0,2517.6,4.78978583]
[1748831932225,1.17027408,2518.1,2517.7,3.97180078]
[1748831932425,0.37697408,2518.0,2517.7,3.97180078]
[1748831932638,0.37697644,2518.0,2517.7,3.97180078]
[1748831932834,0.37697644,2518.0,2517.7,3.97187909]
[1748831933039,0.37697644,2518.0,2517.9,3.9715636]
[1748831933250,0.37697644,2518.1,2517.9,3.9715636]
[1748831933445,6.8553301,2518.2,2517.7,3.97174287]
[1748831933660,0.37698213,2518.1,2517.7,0.87617933]
[1748831933867,6.8543301,2518.2,2517.9,3.97148604]
[1748831934142,0.37698832,2518.1,2517.9,3.97148604]
[1748831934341,6.8543301,2518.2,2517.8,3.97170265]
[1748831934670,0.37697712,2518.1,2517.8,3.97161675]
[1748831934876,6.8543301,2518.2,2517.9,3.9715129]
[1748831935075,0.37697915,2518.1,2517.9,3.9715129]
[1748831935271,6.8543301,2518.2,2517.9,3.9715129]
[1748831935579,0.3769793,2518.1,2517.7,4.84801588]
[1748831935779,6.8543301,2518.2,2517.8,3.97159245]
[1748831935953,0.37698244,2518.1,2517.7,4.84801588]
[1748831936150,2.7783301,2518.2,2517.8,0.56659159]
[1748831936350,0.37697822,2518.1,2518.0,0.7618]
[1748831936553,0.37697822,2518.2,2518.1,3.97124816]
[1748831936754,0.37700858,2518.5,2518.4,3.97073681]
[1748831936958,4.075,2518.6,2518.5,3.97061743]
[1748831937273,8.0,2518.6,2518.5,3.97061743]
[1748831937453,8.37705366,2518.6,2518.4,3.97070645]
[1748831937653,8.37705366,2518.6,2518.5,3.97061743]
[1748831937654,8.0,2518.6,2518.5,3.97061743]
[1748831937850,0.37687737,2518.6,2518.5,3.97061743]
[1748831938057,8.37687737,2518.6,2518.4,3.97071081]
[1748831938246,8.0,2518.6,2518.4,3.97071081]
[1748831938651,10.7783301,2518.6,2518.0,0.7618]
[1748831938851,2.7783301,2518.4,2518.1,3.97123419]
[1748831939056,2.7783301,2518.4,2517.4,0.7618]
[1748831939361,2.7783301,2518.4,2517.9,3.97140975]
[1748831939563,6.8533301,2518.4,2517.9,3.97140975]
[1748831939861,6.8533301,2518.4,2517.8,0.7618]
[1748831940166,6.8533301,2518.4,2518.0,3.97131286]
[1748831940684,6.8533301,2518.4,2518.1,3.9712339]
[1748831941191,2.7783301,2518.2,2517.8,3.97157032]
[1748831941368,2.7783301,2518.2,2517.9,3.97153974]
[1748831942065,2.7783301,2518.2,2517.6,0.8079]
[1748831942066,0.786,2518.1,2517.6,0.8079]
[1748831942281,4.859,2518.1,2517.7,3.97182931]
[1748831942472,4.859,2518.1,2517.8,3.97161731]
[1748831944584,4.859,2518.1,2517.9,3.97154246]
[1748831946299,4.073,2518.1,2517.9,3.97154246]
[1748831947160,4.073,2518.1,2517.8,3.97169088]
[1748831947973,4.073,2518.1,2517.7,3.97179876]
[1748831948185,4.073,2518.1,2517.6,4.77988841]
[1748831948391,4.073,2518.1,2517.8,3.97166746]
[1748831948696,4.073,2518.1,2517.9,3.9714451]
[1748831948997,4.073,2518.1,2518.0,3.97140587]
[1748831949300,4.073,2518.1,2517.9,3.97149304]
[1748831952018,4.073,2518.1,2517.6,0.8079]
[1748831952178,4.073,2518.1,2517.9,3.97146285]
[1748831953492,4.073,2518.1,2518.0,3.97140587]
[1748831953865,4.073,2518.1,2517.9,3.97147588]
[1748831955995,4.073,2518.1,2517.6,4.77988252]
[1748831956202,4.45003581,2518.1,2517.9,3.97155205]
[1748831956409,4.073,2518.1,2518.0,3.97140587]
[1748831956621,8.0,2518.2,2518.1,3.97124815]
[1748831956817,12.43805826,2518.2,2518.1,3.97124815]
[1748831957321,12.43806828,2518.2,2518.0,3.97129083]
[1748831957521,12.061,2518.2,2517.9,3.97151656]
[1748831957886,12.061,2518.2,2518.0,3.97138872]
[1748831958325,12.061,2518.2,2518.1,3.97124816]
[1748831958626,12.43810527,2518.2,2518.1,3.97124816]
[1748831958830,12.43810527,2518.2,2518.0,3.97135987]
[1748831959131,12.061,2518.2,2518.0,3.97135987]
[1748831959282,1.3732,2518.5,2517.7,0.8032]
[1748831959481,12.43611712,2518.4,2518.2,3.97098708]
[1748831959703,0.37711712,2518.3,2518.2,3.97098708]
[1748831960710,0.37711712,2518.5,2518.3,3.97085998]
[1748831960910,0.37711712,2518.4,2518.3,3.97085998]
[1748831961120,0.37711712,2518.5,2518.4,3.97077509]
[1748831961294,0.37711712,2518.5,2518.3,3.97084636]
[1748831961483,12.061,2518.6,2518.3,3.97084636]
[1748831961684,0.37717427,2518.5,2518.3,3.97084636]
[1748831961918,14.8393301,2518.6,2518.3,3.97084636]
[1748831962134,0.37717575,2518.5,2518.0,0.8032]
[1748831962336,0.37717575,2518.4,2518.0,0.8032]
[1748831962518,0.37717575,2518.5,2518.0,0.8032]
[1748831962683,0.37717575,2518.4,2518.0,0.8032]
[1748831962886,0.37717575,2518.5,2518.2,3.9709636]
[1748831963089,0.37717575,2518.4,2518.2,3.9709636]
[1748831963317,14.8393301,2518.6,2518.2,3.9709636]
[1748831963522,0.37718392,2518.5,2518.2,3.9709636]
[1748831963722,0.37718392,2518.4,2518.2,3.9709636]
[1748831963930,0.37718392,2518.5,2518.2,3.9709636]
[1748831964147,0.37718392,2518.4,2518.2,3.9709636]
[1748831964291,0.37718392,2518.5,2518.2,3.9709636]
[1748831964491,0.37718392,2518.4,2518.3,3.97093277]
[1748831964692,0.02,2518.9,2518.4,4.74297509]